[Event "European Rapid Championship 2021"]
[Site "Katowice"]
[Date "2021.12.19"]
[Round "11.15"]
[White "Keinanen, Toivo"]
[Black "Solys, Laimutis"]
[Result "1-0"]
[ECO "A13"]
[WhiteElo "2341"]
[BlackElo "2300"]
[Annotator "NA"]
[PlyCount "113"]
[EventDate "2021.12.18"]
[EventType "swiss"]
[EventCountry "POL"]
[SourceTitle "playchess.com"]
[Source "ChessBase"]
[SourceQuality "1"]
[TimeControl "900+10"]

1. c4 {[%emt 0:00:18]} e6 {[%emt 0:00:03]} 2. g3 {[%emt 0:00:09]} d5 {[%emt 0:
00:22]} 3. Bg2 {[%emt 0:00:01]} a6 {[%emt 0:01:06]} 4. Qb3 {[%emt 0:03:31]} Nf6
{[%emt 0:01:20]} 5. d4 {[%emt 0:01:34]} Nc6 {[%emt 0:03:10]} 6. Nf3 {[%emt 0:
00:20]} dxc4 {[%emt 0:00:48]} 7. Qxc4 {[%emt 0:00:01]} Qd5 {[%emt 0:00:15]} 8.
Nbd2 {[%emt 0:02:05]} Bd6 {[%emt 0:01:46]} 9. O-O {[%emt 0:00:23]} O-O {
[%emt 0:00:16]} 10. Qd3 {[%emt 0:00:58]} Qb5 {[%emt 0:01:44]} 11. Nc4 {[%emt 0:
00:32]} Nb4 {[%emt 0:00:34]} 12. Qb3 {[%emt 0:00:19]} Nbd5 {[%emt 0:00:37]} 13.
Nfe5 {[%emt 0:01:24]} Rd8 {[%emt 0:01:20]} 14. Bg5 {[%emt 0:01:07]} Be7 {
[%emt 0:00:30]} 15. Rfd1 {[%emt 0:00:46]} h6 {[%emt 0:00:10]} 16. Bd2 {[%emt 0:
00:10]} Bd7 {[%emt 0:01:04]} 17. Nxd7 {[%emt 0:00:24]} Nxd7 {[%emt 0:00:12]}
18. Rac1 {[%emt 0:00:29]} Qxb3 {[%emt 0:00:51]} 19. axb3 {[%emt 0:00:00]} c6 {
[%emt 0:00:01]} 20. Na5 {[%emt 0:00:48]} Ra7 {[%emt 0:00:11]} 21. e4 {[%emt 0:
00:43]} Nb4 {[%emt 0:00:23]} 22. Be3 {[%emt 0:00:11]} c5 {[%emt 0:00:51]} 23.
dxc5 {[%emt 0:00:41]} Nc6 {[%emt 0:00:00]} 24. Nc4 {[%emt 0:01:05]} Raa8 {
[%emt 0:00:48]} 25. Nd6 {[%emt 0:00:15]} Rab8 {[%emt 0:00:08]} 26. f4 {[%emt 0:
00:16]} e5 {[%emt 0:00:02]} 27. Bf3 {[%emt 0:00:41]} Bf6 {[%emt 0:00:27]} 28.
Kg2 {[%emt 0:00:13]} Nf8 {[%emt 0:00:02]} 29. f5 {[%emt 0:00:15]} Bg5 {[%emt 0:
00:03]} 30. Kf2 {[%emt 0:00:09]} Bxe3+ {[%emt 0:00:03]} 31. Kxe3 {[%emt 0:00:
01]} Nd4 {[%emt 0:00:01]} 32. b4 {[%emt 0:00:17]} Nd7 {[%emt 0:00:02]} 33. Bh5
{[%emt 0:00:14]} Rf8 {[%emt 0:00:19]} 34. Rc3 {[%emt 0:00:08]} g6 {[%emt 0:00:
14]} 35. Bf3 {[%emt 0:00:15]} Nc6 {[%emt 0:00:26]} 36. Rc4 {[%emt 0:00:10]} Nf6
{[%emt 0:00:03]} 37. b5 {[%emt 0:00:10]} axb5 {[%emt 0:00:02]} 38. Nxb5 {
[%emt 0:00:01]} gxf5 39. exf5 {[%emt 0:00:00]} e4 {[%emt 0:00:13]} 40. Bxe4 {
[%emt 0:00:19]} Ne5 {[%emt 0:00:01]} 41. Rcd4 {[%emt 0:00:10]} Rfe8 {[%emt 0:
00:10]} 42. Nd6 {[%emt 0:00:05]} Neg4+ {[%emt 0:00:07]} 43. Kf4 {[%emt 0:00:14]
} Re7 {[%emt 0:00:06]} 44. b4 {[%emt 0:00:23]} Nf2 {[%emt 0:00:01]} 45. Re1 {
[%emt 0:00:11]} Nh3+ {[%emt 0:00:05]} 46. Ke3 {[%emt 0:00:03]} Ra8 {[%emt 0:00:
08]} 47. Kd2 {[%emt 0:00:15]} Ra2+ {[%emt 0:00:07]} 48. Kc3 {[%emt 0:00:04]}
Rxh2 {[%emt 0:00:09]} 49. Ra1 {[%emt 0:00:13]} Ng5 {[%emt 0:00:05]} 50. Bxb7 {
[%emt 0:00:05]} Nd7 {[%emt 0:00:29]} 51. Kc4 {[%emt 0:00:13]} Rb2 {[%emt 0:00:
43]} 52. Ra8+ {[%emt 0:00:10]} Kg7 {[%emt 0:00:02]} 53. Kb5 {[%emt 0:00:17]}
Re5 {[%emt 0:00:16]} 54. Ne8+ {[%emt 0:00:10]} Kf8 {[%emt 0:00:43]} 55. Rxd7 {
[%emt 0:00:01]} Rxe8 {[%emt 0:00:02]} 56. Rxe8+ {[%emt 0:00:06]} Kxe8 {[%emt 0:
00:01]} 57. Bc6 {[%emt 0:00:04]} 1-0

[Event "European Rapid Championship 2021"]
[Site "Katowice"]
[Date "2021.12.19"]
[Round "11.15"]
[White "Mikhaletz, Lubomir"]
[Black "Lis, Mateusz"]
[Result "1-0"]
[ECO "B46"]
[WhiteElo "2166"]
[BlackElo "1983"]
[Annotator "NA"]
[PlyCount "85"]
[EventDate "2021.12.18"]
[EventType "swiss"]
[EventCountry "POL"]
[SourceTitle "playchess.com"]
[Source "ChessBase"]
[SourceQuality "1"]
[TimeControl "900+10"]

1. e4 {[%emt 0:00:01]} c5 {[%emt 0:00:00]} 2. Nf3 {[%emt 0:00:01]} Nc6 {
[%emt 0:00:01]} 3. d4 {[%emt 0:00:01]} cxd4 {[%emt 0:00:01]} 4. Nxd4 {[%emt 0:
00:01]} e6 {[%emt 0:00:01]} 5. Nc3 {[%emt 0:00:12]} a6 {[%emt 0:00:01]} 6. Be3
{[%emt 0:00:31]} Qc7 {[%emt 0:00:02]} 7. Qf3 {[%emt 0:00:15]} Nf6 {[%emt 0:00:
13]} 8. a3 {[%emt 0:01:59]} Be7 {[%emt 0:00:22]} 9. Bd3 {[%emt 0:02:25]} Ne5 {
[%emt 0:00:25]} 10. Qh3 {[%emt 0:00:18]} Nxd3+ {[%emt 0:00:05]} 11. cxd3 {
[%emt 0:00:03]} d6 {[%emt 0:00:02]} 12. Qg3 {[%emt 0:00:18]} g6 {[%emt 0:00:33]
} 13. Rc1 {[%emt 0:00:23]} Qd8 {[%emt 0:00:21]} 14. f4 {[%emt 0:01:07]} Nxe4 {
[%emt 0:00:34]} 15. Nxe4 {[%emt 0:01:04]} Bh4 {[%emt 0:00:01]} 16. Nxd6+ {
[%emt 0:00:43]} Kf8 {[%emt 0:00:01]} 17. Nf3 {[%emt 0:00:09]} Bxg3+ {[%emt 0:
00:03]} 18. hxg3 {[%emt 0:00:01]} b6 {[%emt 0:02:43]} 19. Rc6 {[%emt 0:01:17]}
f6 {[%emt 0:02:22]} 20. Bxb6 {[%emt 0:00:32]} Qd7 {[%emt 0:02:37]} 21. Rc7 {
[%emt 0:00:05]} Qxd6 {[%emt 0:00:31]} 22. Bc5 {[%emt 0:00:02]} Qxc5 {[%emt 0:
00:00]} 23. Rxc5 {[%emt 0:00:01]} Ke7 {[%emt 0:00:05]} 24. Rc7+ {[%emt 0:01:34]
} Bd7 {[%emt 0:00:01]} 25. Kd2 {[%emt 0:00:38]} Kd6 {[%emt 0:00:08]} 26. Rhc1 {
[%emt 0:00:23]} Rhb8 {[%emt 0:00:08]} 27. b4 {[%emt 0:00:40]} a5 {[%emt 0:00:
09]} 28. R7c4 {[%emt 0:00:27]} axb4 {[%emt 0:00:11]} 29. Rd4+ {[%emt 0:00:18]}
Ke7 {[%emt 0:00:01]} 30. Rc7 {[%emt 0:00:06]} Rd8 {[%emt 0:00:13]} 31. axb4 {
[%emt 0:00:17]} Ra2+ {[%emt 0:00:02]} 32. Kc3 {[%emt 0:01:18]} Ke8 {[%emt 0:00:
33]} 33. g4 {[%emt 0:00:20]} Ba4 {[%emt 0:00:31]} 34. Rxd8+ {[%emt 0:00:11]}
Kxd8 {[%emt 0:00:01]} 35. Rxh7 {[%emt 0:00:03]} Rxg2 {[%emt 0:00:02]} 36. g5 {
[%emt 0:00:02]} fxg5 {[%emt 0:00:14]} 37. Nxg5 {[%emt 0:00:05]} Bd7 {[%emt 0:
00:09]} 38. Ne4 {[%emt 0:00:56]} Rg1 {[%emt 0:00:20]} 39. Nc5 {[%emt 0:00:04]}
Bc8 {[%emt 0:00:28]} 40. b5 Rb1 {[%emt 0:00:03]} 41. Kc4 {[%emt 0:00:35]} Rc1+
{[%emt 0:00:28]} 42. Kb4 {[%emt 0:00:05]} Rb1+ {[%emt 0:00:02]} 43. Ka5 {
[%emt 0:00:04]} 1-0

[Event "European Rapid Championship 2021"]
[Site "Katowice"]
[Date "2021.12.19"]
[Round "11.16"]
[White "Bogdanov, Ignat"]
[Black "Rudzinska, Michalina"]
[Result "1-0"]
[ECO "E38"]
[WhiteElo "2058"]
[BlackElo "1962"]
[Annotator "NA"]
[PlyCount "127"]
[EventDate "2021.12.18"]
[EventType "swiss"]
[EventCountry "POL"]
[SourceTitle "playchess.com"]
[Source "ChessBase"]
[SourceQuality "1"]
[TimeControl "900+10"]

1. d4 {[%emt 0:00:02]} Nf6 {[%emt 0:00:02]} 2. c4 {[%emt 0:00:01]} e6 {[%emt 0:
00:04]} 3. Nc3 {[%emt 0:00:04]} Bb4 {[%emt 0:00:02]} 4. Qc2 {[%emt 0:00:01]} c5
{[%emt 0:00:03]} 5. e3 {[%emt 0:00:45]} O-O {[%emt 0:00:19]} 6. Nf3 {[%emt 0:
00:03]} cxd4 {[%emt 0:00:07]} 7. exd4 {[%emt 0:00:12]} d5 {[%emt 0:00:04]} 8.
Bg5 {[%emt 0:00:13]} Nbd7 {[%emt 0:00:34]} 9. Bd3 {[%emt 0:01:00]} h6 {[%emt 0:
00:10]} 10. Bh4 {[%emt 0:00:40]} dxc4 {[%emt 0:00:11]} 11. Bxc4 {[%emt 0:00:04]
} Bxc3+ {[%emt 0:00:12]} 12. bxc3 {[%emt 0:00:29]} b6 {[%emt 0:00:05]} 13. O-O
{[%emt 0:01:20]} Bb7 {[%emt 0:00:03]} 14. Ne5 {[%emt 0:01:43]} Qc7 {[%emt 0:00:
37]} 15. Nxd7 {[%emt 0:00:33]} Nxd7 {[%emt 0:00:03]} 16. Bd3 {[%emt 0:00:20]}
Rac8 {[%emt 0:00:11]} 17. Rac1 {[%emt 0:00:24]} e5 {[%emt 0:01:19]} 18. Bg3 {
[%emt 0:01:59]} Qc6 {[%emt 0:05:40]} 19. f3 {[%emt 0:00:06]} b5 {[%emt 0:00:47]
} 20. Be4 {[%emt 0:00:38]} Qb6 {[%emt 0:00:03]} 21. Bxb7 {[%emt 0:00:49]} Qxb7
{[%emt 0:00:01]} 22. dxe5 {[%emt 0:00:14]} Nb6 {[%emt 0:00:32]} 23. Qf2 {
[%emt 0:02:15]} Na4 {[%emt 0:01:52]} 24. Qe3 {[%emt 0:00:40]} Qd5 {[%emt 0:00:
53]} 25. f4 {[%emt 0:01:27]} Qc5 {[%emt 0:00:45]} 26. Rf3 {[%emt 0:01:01]} b4 {
[%emt 0:01:18]} 27. Be1 {[%emt 0:00:56]} Rfd8 {[%emt 0:00:57]} 28. Qxc5 {
[%emt 0:00:18]} Rxc5 {[%emt 0:00:02]} 29. c4 {[%emt 0:00:01]} Rdc8 {[%emt 0:01:
01]} 30. Bxb4 {[%emt 0:00:09]} Rxc4 {[%emt 0:00:02]} 31. Rxc4 {[%emt 0:00:01]}
Rxc4 {[%emt 0:00:01]} 32. a3 {[%emt 0:00:38]} Nb6 {[%emt 0:00:07]} 33. g3 {
[%emt 0:00:38]} Nd5 {[%emt 0:00:36]} 34. Bd6 {[%emt 0:00:04]} a5 {[%emt 0:00:
11]} 35. Rd3 {[%emt 0:00:23]} Nc3 {[%emt 0:00:20]} 36. Kg2 {[%emt 0:00:22]} Nb5
{[%emt 0:00:38]} 37. Rd5 {[%emt 0:00:14]} Rc2+ {[%emt 0:00:05]} 38. Kh3 {
[%emt 0:00:11]} Nc3 {[%emt 0:00:49]} 39. Rc5 {[%emt 0:00:01]} Rc1 {[%emt 0:00:
39]} 40. Kg4 {[%emt 0:00:34]} a4 {[%emt 0:00:07]} 41. Kf5 {[%emt 0:00:11]} g6+
{[%emt 0:00:14]} 42. Kg4 {[%emt 0:00:00]} h5+ {[%emt 0:00:06]} 43. Kf3 {
[%emt 0:00:13]} Rf1+ {[%emt 0:00:02]} 44. Kg2 {[%emt 0:00:02]} Rc1 {[%emt 0:00:
06]} 45. Rc8+ {[%emt 0:00:03]} Kh7 {[%emt 0:00:04]} 46. Be7 {[%emt 0:00:18]}
Ne2 {[%emt 0:00:30]} 47. Rxc1 {[%emt 0:00:02]} Nxc1 {[%emt 0:00:01]} 48. Kf3 {
[%emt 0:00:01]} Nb3 {[%emt 0:00:21]} 49. Ke3 {[%emt 0:00:11]} Kg7 {[%emt 0:00:
05]} 50. Kd3 {[%emt 0:00:09]} Nc1+ {[%emt 0:00:16]} 51. Kc4 {[%emt 0:00:08]}
Nb3 {[%emt 0:00:07]} 52. Kb4 {[%emt 0:00:10]} Nd2 {[%emt 0:00:02]} 53. Kxa4 {
[%emt 0:00:11]} Nf1 {[%emt 0:00:03]} 54. Kb5 {[%emt 0:00:08]} Nxh2 {[%emt 0:00:
03]} 55. a4 {[%emt 0:00:02]} Nf1 {[%emt 0:00:04]} 56. Bh4 {[%emt 0:00:01]} g5 {
[%emt 0:00:10]} 57. fxg5 {[%emt 0:00:26]} Ne3 {[%emt 0:00:03]} 58. a5 {[%emt 0:
00:11]} Nd5 {[%emt 0:00:27]} 59. a6 {[%emt 0:00:34]} Nc7+ {[%emt 0:00:05]} 60.
Kb6 {[%emt 0:00:01]} Nxa6 {[%emt 0:00:01]} 61. Kxa6 {[%emt 0:00:01]} Kg6 {
[%emt 0:00:01]} 62. Kb6 {[%emt 0:00:01]} Kf5 {[%emt 0:00:01]} 63. Kc6 {[%emt 0:
00:01]} Kxe5 {[%emt 0:00:02]} 64. Kd7 {[%emt 0:00:01]} 1-0

[Event "European Rapid Championship 2021"]
[Site "Katowice"]
[Date "2021.12.19"]
[Round "11.16"]
[White "Kowalczyk, Mariusz"]
[Black "Kozak, Antoni"]
[Result "0-1"]
[ECO "A06"]
[WhiteElo "2047"]
[BlackElo "2356"]
[Annotator "NA"]
[PlyCount "66"]
[EventDate "2021.12.18"]
[EventType "swiss"]
[EventCountry "POL"]
[SourceTitle "playchess.com"]
[Source "ChessBase"]
[SourceQuality "1"]
[TimeControl "900+10"]

1. Nf3 {[%emt 0:00:16]} d5 {[%emt 0:00:11]} 2. g3 {[%emt 0:00:11]} Nf6 {
[%emt 0:01:06]} 3. Bg2 {[%emt 0:00:03]} Bf5 {[%emt 0:00:17]} 4. d4 {[%emt 0:00:
33]} c6 {[%emt 0:00:13]} 5. c4 {[%emt 0:00:47]} e6 {[%emt 0:00:02]} 6. O-O {
[%emt 0:00:11]} Be7 {[%emt 0:00:11]} 7. Qb3 {[%emt 0:01:01]} Qb6 {[%emt 0:00:
08]} 8. Nc3 {[%emt 0:00:24]} Nbd7 {[%emt 0:00:07]} 9. Bf4 {[%emt 0:00:45]} h6 {
[%emt 0:00:29]} 10. c5 {[%emt 0:00:57]} Qa6 {[%emt 0:00:01]} 11. Ne5 {[%emt 0:
01:27]} Nxe5 {[%emt 0:01:07]} 12. Bxe5 {[%emt 0:00:11]} O-O {[%emt 0:00:02]}
13. Rfe1 {[%emt 0:00:30]} b6 {[%emt 0:02:18]} 14. e4 {[%emt 0:02:50]} dxe4 {
[%emt 0:00:12]} 15. Nxe4 {[%emt 0:00:02]} Bxe4 {[%emt 0:03:55]} 16. Bxe4 {
[%emt 0:00:06]} bxc5 {[%emt 0:00:02]} 17. dxc5 {[%emt 0:00:53]} Nd7 {[%emt 0:
00:44]} 18. Bc2 {[%emt 0:05:57]} Nxe5 {[%emt 0:01:17]} 19. Rxe5 {[%emt 0:00:16]
} Rab8 {[%emt 0:00:23]} 20. Qf3 {[%emt 0:00:48]} Bf6 {[%emt 0:00:32]} 21. Re2 {
[%emt 0:00:08]} Rxb2 {[%emt 0:00:11]} 22. Bd3 {[%emt 0:00:22]} Qa5 {[%emt 0:01:
54]} 23. Rxb2 {[%emt 0:00:02]} Bxb2 24. Rb1 {[%emt 0:00:00]} Bd4 {[%emt 0:01:
50]} 25. Qe4 {[%emt 0:00:12]} Rd8 {[%emt 0:00:01]} 26. Qh7+ {[%emt 0:00:22]}
Kf8 {[%emt 0:00:01]} 27. Rb7 {[%emt 0:00:01]} Qe1+ {[%emt 0:00:57]} 28. Kg2 {
[%emt 0:00:01]} Qxf2+ {[%emt 0:00:01]} 29. Kh3 {[%emt 0:00:01]} g6 {[%emt 0:00:
01]} 30. Bxg6 {[%emt 0:00:25]} Qf1+ {[%emt 0:00:01]} 31. Kg4 {[%emt 0:00:21]}
f5+ {[%emt 0:00:01]} 32. Kh4 {[%emt 0:00:07]} Bf6+ {[%emt 0:00:01]} 33. Kh5 {
[%emt 0:00:07]} Qh3# {[%emt 0:00:15]} 0-1

[Event "European Rapid Championship 2021"]
[Site "Katowice"]
[Date "2021.12.19"]
[Round "11.17"]
[White "Batashevs, Arsens"]
[Black "Galuszka, Tomasz"]
[Result "1/2-1/2"]
[ECO "A06"]
[WhiteElo "2165"]
[BlackElo "1886"]
[Annotator "NA"]
[PlyCount "140"]
[EventDate "2021.12.18"]
[EventType "swiss"]
[EventCountry "POL"]
[SourceTitle "playchess.com"]
[Source "ChessBase"]
[SourceQuality "1"]
[TimeControl "900+10"]

1. Nf3 {[%emt 0:00:01]} d5 {[%emt 0:00:02]} 2. c4 {[%emt 0:00:01]} c6 {[%emt 0:
00:01]} 3. e3 {[%emt 0:00:07]} Nf6 {[%emt 0:00:02]} 4. b3 {[%emt 0:00:02]} Bg4
{[%emt 0:00:09]} 5. Bb2 {[%emt 0:00:01]} e6 {[%emt 0:00:02]} 6. Be2 {[%emt 0:
00:03]} Nbd7 {[%emt 0:00:01]} 7. d4 {[%emt 0:00:01]} Bd6 {[%emt 0:00:07]} 8.
O-O {[%emt 0:00:57]} O-O {[%emt 0:00:10]} 9. Ne5 {[%emt 0:00:07]} Bxe2 {
[%emt 0:00:16]} 10. Qxe2 {[%emt 0:00:01]} Qc7 {[%emt 0:00:29]} 11. f4 {[%emt 0:
00:07]} Ne4 {[%emt 0:01:46]} 12. Nxd7 {[%emt 0:00:36]} Qxd7 {[%emt 0:00:02]}
13. Nd2 {[%emt 0:00:04]} Nxd2 {[%emt 0:00:57]} 14. Qxd2 {[%emt 0:00:02]} f5 {
[%emt 0:00:11]} 15. Rac1 {[%emt 0:00:57]} h6 {[%emt 0:00:28]} 16. b4 {[%emt 0:
01:31]} b5 {[%emt 0:01:47]} 17. cxb5 {[%emt 0:00:15]} cxb5 {[%emt 0:00:07]} 18.
a3 {[%emt 0:00:11]} Rfc8 {[%emt 0:00:33]} 19. Rc5 {[%emt 0:00:01]} Bxc5 {
[%emt 0:01:32]} 20. dxc5 {[%emt 0:00:01]} a5 {[%emt 0:00:10]} 21. Rc1 {[%emt 0:
00:32]} axb4 {[%emt 0:03:10]} 22. axb4 Ra2 {[%emt 0:00:14]} 23. Qd4 {[%emt 0:
00:11]} Rc6 {[%emt 0:00:11]} 24. Rc2 {[%emt 0:01:31]} Kh7 {[%emt 0:00:47]} 25.
h3 {[%emt 0:01:11]} Qf7 {[%emt 0:00:54]} 26. Qd3 {[%emt 0:00:05]} Rc7 {[%emt 0:
02:12]} 27. Kh2 {[%emt 0:03:13]} h5 {[%emt 0:00:59]} 28. Rd2 {[%emt 0:00:49]}
h4 {[%emt 0:00:22]} 29. g4 {[%emt 0:00:55]} hxg3+ {[%emt 0:00:02]} 30. Kxg3 {
[%emt 0:00:00]} Rca7 {[%emt 0:01:18]} 31. Kh2 {[%emt 0:00:17]} Qg6 {[%emt 0:00:
07]} 32. Qc3 {[%emt 0:01:57]} Qf6 {[%emt 0:00:49]} 33. Qc1 {[%emt 0:00:41]} Qh6
{[%emt 0:00:28]} 34. Rg2 {[%emt 0:00:07]} Qh5 {[%emt 0:00:04]} 35. Qc3 {
[%emt 0:00:57]} Qf7 {[%emt 0:00:10]} 36. c6 {[%emt 0:01:36]} Qf6 {[%emt 0:00:
15]} 37. Qb3 {[%emt 0:00:40]} Rxb2 {[%emt 0:00:01]} 38. Qxb2 {[%emt 0:00:01]}
Qxb2 {[%emt 0:00:06]} 39. Rxb2 {[%emt 0:00:01]} Rc7 {[%emt 0:00:06]} 40. Rc2 {
[%emt 0:00:01]} Kg6 {[%emt 0:00:01]} 41. Kg3 {[%emt 0:00:38]} Kf6 {[%emt 0:00:
01]} 42. h4 {[%emt 0:00:28]} g6 {[%emt 0:00:10]} 43. Rc5 {[%emt 0:00:01]} Ke7 {
[%emt 0:00:04]} 44. Rxb5 {[%emt 0:00:58]} Rxc6 {[%emt 0:00:01]} 45. Rb7+ {
[%emt 0:00:02]} Kf6 {[%emt 0:00:01]} 46. b5 {[%emt 0:00:01]} Rc3 {[%emt 0:00:
01]} 47. Kf2 {[%emt 0:00:00]} Rc2+ {[%emt 0:00:26]} 48. Kf3 {[%emt 0:00:02]}
Rb2 {[%emt 0:00:12]} 49. b6 {[%emt 0:00:03]} e5 {[%emt 0:00:17]} 50. Rb8 {
[%emt 0:01:02]} exf4 {[%emt 0:00:10]} 51. exf4 {[%emt 0:00:07]} d4 {[%emt 0:00:
03]} 52. b7 {[%emt 0:00:02]} Kg7 {[%emt 0:00:01]} 53. Kg3 {[%emt 0:00:25]} Kh7
{[%emt 0:00:17]} 54. h5 {[%emt 0:00:10]} gxh5 {[%emt 0:00:04]} 55. Kh4 {
[%emt 0:00:00]} d3 {[%emt 0:00:12]} 56. Kxh5 {[%emt 0:00:07]} d2 {[%emt 0:00:
04]} 57. Rd8 {[%emt 0:00:01]} Rxb7 {[%emt 0:00:05]} 58. Rxd2 {[%emt 0:00:04]}
Kg7 {[%emt 0:00:18]} 59. Kg5 {[%emt 0:00:03]} Kf7 {[%emt 0:00:01]} 60. Rd5 {
[%emt 0:00:02]} Rb6 {[%emt 0:00:34]} 61. Rd7+ {[%emt 0:00:11]} Ke6 {[%emt 0:00:
01]} 62. Rh7 {[%emt 0:00:24]} Rb5 {[%emt 0:00:19]} 63. Kg6 {[%emt 0:00:40]} Rb1
{[%emt 0:00:34]} 64. Rh5 {[%emt 0:00:01]} Rg1+ {[%emt 0:00:10]} 65. Rg5 {
[%emt 0:00:03]} Rg4 {[%emt 0:00:12]} 66. Rxg4 {[%emt 0:00:21]} fxg4 {[%emt 0:
00:02]} 67. f5+ {[%emt 0:00:01]} Ke5 {[%emt 0:00:01]} 68. f6 {[%emt 0:00:00]}
g3 {[%emt 0:00:01]} 69. f7 {[%emt 0:00:01]} g2 {[%emt 0:00:01]} 70. f8=Q {
[%emt 0:00:02]} g1=Q+ {[%emt 0:00:02]} 1/2-1/2

[Event "European Rapid Championship 2021"]
[Site "Katowice"]
[Date "2021.12.19"]
[Round "11.18"]
[White "Andersen, Mads"]
[Black "Przybylski, Wojciech"]
[Result "0-1"]
[ECO "A05"]
[WhiteElo "2574"]
[BlackElo "2321"]
[Annotator "ChessBase"]
[PlyCount "104"]
[EventDate "2021.12.18"]
[EventType "swiss"]
[EventCountry "POL"]
[SourceTitle "playchess.com"]
[Source "ChessBase"]
[SourceQuality "1"]
[TimeControl "900+10"]

1. Nf3 {[%emt 0:00:04]} Nf6 {[%emt 0:00:04]} 2. c4 {[%emt 0:00:02]} c6 {
[%emt 0:00:03]} 3. e3 {[%emt 0:00:08]} d5 {[%emt 0:00:03]} 4. Nc3 {[%emt 0:00:
07]} e6 {[%emt 0:00:09]} 5. b3 {[%emt 0:00:09]} Nbd7 {[%emt 0:00:07]} 6. Qc2 {
[%emt 0:00:10]} Bd6 {[%emt 0:00:18]} 7. Bb2 {[%emt 0:00:12]} O-O {[%emt 0:00:
05]} 8. Be2 {[%emt 0:00:06]} Re8 {[%emt 0:00:44]} 9. d4 {[%emt 0:00:29]} dxc4 {
[%emt 0:02:57]} 10. bxc4 {[%emt 0:00:33]} e5 {[%emt 0:00:01]} 11. O-O exd4 {
[%emt 0:00:13]} 12. exd4 {[%emt 0:00:09]} Nf8 {[%emt 0:00:11]} 13. h3 {[%emt 0:
00:19]} Ng6 {[%emt 0:00:12]} 14. Rfe1 {[%emt 0:00:02]} Bd7 {[%emt 0:00:38]} 15.
Bf1 {[%emt 0:00:34]} Qc7 {[%emt 0:00:14]} 16. a4 {[%emt 0:03:26]} a5 {[%emt 0:
00:54]} 17. Rad1 {[%emt 0:01:15]} Rad8 {[%emt 0:00:55]} 18. Qb3 {[%emt 0:00:57]
} Bb4 {[%emt 0:04:28]} 19. Rxe8+ {[%emt 0:03:39]} Rxe8 {[%emt 0:00:11]} 20. Na2
{[%emt 0:00:01]} Bd6 {[%emt 0:00:38]} 21. Nc1 {[%emt 0:00:05]} Bf5 {[%emt 0:01:
04]} 22. Nd3 {[%emt 0:00:32]} Ne4 {[%emt 0:00:56]} 23. Re1 {[%emt 0:00:49]} Nf6
{[%emt 0:02:17]} 24. Rd1 {[%emt 0:00:54]} Ne4 {[%emt 0:00:16]} 25. Bc1 {
[%emt 0:00:01]} h6 {[%emt 0:00:19]} 26. Re1 {[%emt 0:00:15]} Nh4 {[%emt 0:00:
54]} 27. Nfe5 {[%emt 0:01:04]} c5 {[%emt 0:00:21]} 28. f3 {[%emt 0:01:01]} Ng3
{[%emt 0:00:18]} 29. Qb5 {[%emt 0:00:58]} Re7 {[%emt 0:00:06]} 30. Nxc5 {
[%emt 0:01:02]} f6 {[%emt 0:00:16]} 31. Ned3 {[%emt 0:00:26]} Nxf1 {[%emt 0:00:
08]} 32. Kxf1 {[%emt 0:00:32]} Bg3 {[%emt 0:00:10]} 33. Rxe7 {[%emt 0:00:07]}
Qxe7 {[%emt 0:00:00]} 34. Ne4 {[%emt 0:00:24]} Bxe4 {[%emt 0:00:25]} 35. fxe4 {
[%emt 0:00:01]} Qxe4 {[%emt 0:00:00]} 36. Qd5+ {[%emt 0:00:09]} Qxd5 {[%emt 0:
00:02]} 37. cxd5 Nf5 {[%emt 0:00:02]} 38. Nc5 {[%emt 0:00:27]} b6 {[%emt 0:00:
13]} 39. Ne6 {[%emt 0:00:16]} Ne7 {[%emt 0:00:22]} 40. Ke2 {[%emt 0:00:11]}
Nxd5 {[%emt 0:00:03]} 41. Kd3 {[%emt 0:00:09]} Kf7 {[%emt 0:00:08]} 42. Nd8+ {
[%emt 0:00:02]} Ke7 {[%emt 0:00:11]} 43. Kc4 {[%emt 0:00:05]} Nb4 {[%emt 0:00:
27]} 44. Nb7 {[%emt 0:00:18]} Kd7 {[%emt 0:00:01]} 45. Kb5 {[%emt 0:00:16]} Kc7
{[%emt 0:00:04]} 46. Nxa5 {[%emt 0:00:11]} bxa5 {[%emt 0:00:04]} 47. Bd2 {
[%emt 0:00:02]} Bd6 {[%emt 0:00:08]} 48. Bc3 {[%emt 0:00:12]} Kb7 {[%emt 0:00:
22]} 49. Kxa5 {[%emt 0:00:10]} Nd5 {[%emt 0:00:15]} 50. Bd2 {[%emt 0:00:06]}
Kc6 {[%emt 0:00:03]} 51. Ka6 {[%emt 0:00:02]} Nf4 {[%emt 0:00:14]} 52. a5 {
[%emt 0:00:12]} Bb8 {[%emt 0:00:14]} 0-1

[Event "European Rapid Championship 2021"]
[Site "Katowice"]
[Date "2021.12.19"]
[Round "11.18"]
[White "Pacuszka, Tomasz"]
[Black "Savicevs, Arsenijs"]
[Result "0-1"]
[ECO "B20"]
[WhiteElo "2193"]
[BlackElo "1881"]
[Annotator "NA"]
[PlyCount "100"]
[EventDate "2021.12.18"]
[EventType "swiss"]
[EventCountry "POL"]
[SourceTitle "playchess.com"]
[Source "ChessBase"]
[SourceQuality "1"]
[TimeControl "900+10"]

1. e4 {[%emt 0:00:01]} c5 {[%emt 0:00:01]} 2. Be2 {[%emt 0:00:01]} e6 {[%emt 0:
00:05]} 3. f4 {[%emt 0:00:02]} Nc6 {[%emt 0:00:08]} 4. Nf3 {[%emt 0:00:02]} g6
{[%emt 0:00:10]} 5. O-O {[%emt 0:00:07]} Bg7 {[%emt 0:00:02]} 6. d3 {[%emt 0:
00:46]} Nge7 {[%emt 0:00:05]} 7. c3 {[%emt 0:00:14]} d5 {[%emt 0:01:00]} 8. e5
{[%emt 0:00:07]} h5 {[%emt 0:00:14]} 9. Be3 {[%emt 0:00:36]} d4 {[%emt 0:00:03]
} 10. Bf2 {[%emt 0:00:02]} Nf5 {[%emt 0:00:01]} 11. Nbd2 {[%emt 0:00:20]} Nce7
{[%emt 0:02:51]} 12. c4 {[%emt 0:00:07]} b6 {[%emt 0:00:20]} 13. Ne4 {[%emt 0:
00:16]} Bb7 {[%emt 0:00:39]} 14. Nfg5 {[%emt 0:00:02]} Bh6 {[%emt 0:00:43]} 15.
Bf3 {[%emt 0:00:49]} Bxe4 {[%emt 0:02:22]} 16. Bxe4 {[%emt 0:01:20]} Bxg5 {
[%emt 0:00:11]} 17. fxg5 {[%emt 0:00:04]} Rb8 {[%emt 0:01:00]} 18. b4 {[%emt 0:
01:07]} Qc7 {[%emt 0:00:11]} 19. Re1 {[%emt 0:00:18]} O-O {[%emt 0:00:25]} 20.
Qa4 {[%emt 0:00:53]} cxb4 {[%emt 0:01:06]} 21. Qxb4 {[%emt 0:00:20]} Nc6 {
[%emt 0:02:18]} 22. Qb5 {[%emt 0:00:05]} Nce7 {[%emt 0:00:36]} 23. Bf3 {
[%emt 0:00:23]} Rfc8 {[%emt 0:00:31]} 24. Re4 {[%emt 0:00:31]} Qc5 {[%emt 0:00:
02]} 25. a4 {[%emt 0:00:25]} Nc6 {[%emt 0:00:32]} 26. h3 {[%emt 0:00:54]} a6 {
[%emt 0:01:18]} 27. Qxa6 {[%emt 0:00:19]} Nb4 {[%emt 0:00:05]} 28. Qb5 {
[%emt 0:00:11]} Nxd3 {[%emt 0:00:02]} 29. g4 {[%emt 0:00:20]} Nxf2 {[%emt 0:00:
38]} 30. Kxf2 {[%emt 0:00:37]} Qxb5 {[%emt 0:00:28]} 31. axb5 {[%emt 0:00:13]}
Ne3 {[%emt 0:00:05]} 32. Rxd4 {[%emt 0:00:28]} Nc2 {[%emt 0:00:03]} 33. Rdd1 {
[%emt 0:00:05]} Nxa1 {[%emt 0:00:02]} 34. Rxa1 {[%emt 0:00:01]} Rxc4 {[%emt 0:
00:18]} 35. gxh5 gxh5 36. Bxh5 {[%emt 0:00:14]} Rc5 {[%emt 0:00:18]} 37. Be2 {
[%emt 0:00:28]} Rxe5 {[%emt 0:00:03]} 38. h4 {[%emt 0:00:01]} Rc8 {[%emt 0:00:
20]} 39. Ra2 {[%emt 0:00:02]} Kg7 {[%emt 0:00:34]} 40. Rd2 {[%emt 0:00:07]} Rd5
{[%emt 0:00:17]} 41. Ra2 {[%emt 0:00:06]} f6 {[%emt 0:00:17]} 42. Ra7+ {
[%emt 0:01:45]} Kg6 {[%emt 0:00:02]} 43. Re7 {[%emt 0:00:02]} Rd6 {[%emt 0:00:
22]} 44. gxf6 {[%emt 0:01:11]} Kxf6 {[%emt 0:00:05]} 45. Rb7 {[%emt 0:00:02]}
Rc2 {[%emt 0:00:36]} 46. Ke3 {[%emt 0:00:13]} Rc3+ {[%emt 0:00:20]} 47. Kf2 {
[%emt 0:00:05]} Rh3 {[%emt 0:00:10]} 48. h5 {[%emt 0:00:38]} Rd2 {[%emt 0:00:
09]} 49. Ke1 {[%emt 0:00:50]} Ra2 {[%emt 0:00:09]} 50. Rd7 {[%emt 0:00:10]}
Rh1+ {[%emt 0:00:07]} 0-1